Workbook

Sheet Topics
A1: Checks and Deposits & Withdrawals at Your Bank
A2: Calculating Checking Fees
A3: Calculating Checking Fees with VLOOKUP Function
A4: Create Checkbook Register In Excel with IF Function
A5: Bank Services
A6: Credit Card Fees
A7: Bank Reconciliation

Sheet Checking
A1: Banking Services
A2: Traditional Banking: write check, keep checking register by hand, visit a teller
A3: Online Banking: write few checks, keep check register on computer, use 1) direct deposit, 2) bill pay,
A4: 3) credit card, 4) secure online site to conduct banking business.
A5: Business Checking Account
A6: Some charge fees
A7: Some pay interest
A8: Shop around, some Banks like Boeing Employees Credit Union or E-Trade have really nice accounts
A9: with no service charges, a small amount of interest, free checking/bill pay, and low balance
A10: requirements
A12: Make Payments: | B12: Our Business Is Paying Someone Else
A13: Cash
A14: Checks | B14: Consumer payments made by check: 2000 ==>> 50%, 2010 ==>> 18%
A15: Credit Card | B15: You go into debt and must pay later, if you don't you get charged a fee
A16: Debit Card | B16: When you slide the card, the cash is removed from your checking account
A17: Electronic Payments (Bill Pay, Direct Withdrawal) | B17: This is growing quickly, and is the future of payments
A18: Direct Withdrawal
A19: Prepaid Card
A20: Paypal
A21: Mobile Phone
A22: Receive Payments: | B22: Our Business Is GETTING PAID From Someone Else
A23: Cash
A24: Checks
A25: Credit Card | B25: When you slide the card and the customer pays you $100, the CC company charges you a fee (maybe $2), so you will receive $98 in your account soon.
A26: Debit Card | B26: When you slide the card and the customer pays you $100, the CC company charges you a fee (maybe $1), so you will receive $99 in your account soon.
A27: Electronic Payments (Bill Pay, Direct Deposit)
A28: Direct Deposit
A29: Prepaid Card
A30: Paypal
A31: Mobile Phone

Sheet Checks
A1: Sioux's Accounting | D1: No. | E1: 4025
A2: 3985 14th Ave. S. | E2: 66-420
A3: Seattle, WA 98106 | E3: 1210
D4: Date | E4: =TODAY() -> 2016-07-25
B5: PAY TO THE ORDER OF: | C5: Home Depot | D5: Amount | E5: $158.70
B6: Amount | C6: One Hundred Fifty Eight Dollars And Seventy Cents----------------------------------------------------------------------------------------------------------------------- | E6: Dollars
A8: Boeing Employees Credit Union
A9: 12770 Gateway Dr.
A10: Tukwila, WA 98168
B11: By | C11: Sioux Radcoolinator
A12: Memo | B12: Purchase Desk
B13: l▪▪ 1210 ▪▪▪ 0420 l▪▪ 6005655960 ll■ 4025
C15: Check:
A16: front | C16: Payor's printed address
A17: canceled | C17: Check number
C18: Date
C19: ABA transit number
C20: Numerator: City, State, Bank
C21: Denominator: Federal Reserve District and Bank
C22: Pay to the order of:
C23: Payee’s name
C24: Amount line:
C25: Write close to dollar sign
C26: Amount in words
C27: Use “and” between dollars and fraction of dollars
C28: Use entire line ----------
C29: Words supersede numerals for amount
C30: Bank’s address
C31: Signature line
C32: Should match signature on signature card
C33: An electronic photo of a canceled check that you obtain?
C34: Record of business transaction
C35: Proof that you paid someone
C58: Who is the drawer, or payor, or payer?
C59: Person who writes check
C60: Who is the payee?
C61: Person to whom the payment is made
C62: What is a check?
C63: Order by drawer for bank to make payment to payee
C64: Check that has not been filled out?
C65: Paper
C66: Signed check made out to you?
C67: Asset: Cash
C69: Types of checking accounts:
C70: Checking accounts are offered by:
C71: Banks
C72: Saving and Loans
C73: Credit Unions
C74: On-line banks (reduced costs of on-line services can result in higher interest being paid and lower service costs)
C76: Personal checking accounts:
C77: Below a set balance may result in a service fee
C78: Account may earn interest
C80: Business checking accounts:
C81: Banks offer more services because of the increased levels of money deposited and potential for making loans
C82: Banks will accept payments for the business
C83: Banks may set up a level of credit for the business to make short-term loans
C84: Large businesses may make overnight or short-term deposits to earn interest
C86: ATM Machines:
C87: Be sure to keep the printed out receipts for your records
C89: On-line banks:
C90: Reduced costs of on-line services can result in higher interest being paid and lower service costs
C91: Transactions and banking activity can be performed more conveniently from a computer
C92: Check balances and reconcile on-line at home or at the business
C93: Pay bills from the on-line bank site
C95: Debit Cards
C96: When you use a debit card the cash is withdrawn from your account
C99: Credit Cards
C100: Credit Cards are not associated directly with your checking account
C101: When you use a credit card you "go into debt"

Sheet Check Stubs
C2: 4025 | H2: Suix's Accounting | K2: No. | L2: 4025
C3: Date: | D3: 2007-01-23 | H3: 3985 14th Ave. S. | L3: 66-420
C4: Amount | D4: $158.70 | H4: Seattle, WA 98106 | L4: 1210
C5: To | D5: Home Depot | K5: Date | L5: =TODAY() -> 2016-07-25
C6: For | D6: Purchase Desk | I6: PAY TO THE ORDER OF: | J6: Home Depot | K6: Amount | L6: $158.70
C7: Bal. Bro't For'd | E7: 5000.25 | I7: Amount | J7: One Hundred Fifty Eight Dollars And Seventy Cents----------------------------------------------------------------------------------------------------------------------- | L7: Dollars
C8: Am't Deposited
C9: Total | E9: =SUM(E7:E8) -> 5000.25 | H9: Boeing Employees Credit Union
C10: Am't this Check | E10: =D4 -> $158.70 | H10: 12770 Gateway Dr.
C11: Balance For'd | E11: =E9-E10 -> 4841.55 | H11: Tukwila, WA 98168
I12: By | J12: Suix Radcoolinator
H13: Memo | I13: Purchase Desk
I14: l▪▪ 1210 ▪▪▪ 0420 l▪▪ 6005655960 ll■ 4025
A16: Why are checks stubs important?
A17: Because you use the check stub as the source information to enter the business transaction into the official business accounting system

Sheet Deposit Slips

Sheet Types of Endorsements
B1: Types of Endorsements
B2: Restrictive endorsement
B3: Restricts or limits further transfer of title
B4: Example: “for deposit only”
B5: Blank endorsement
B6: Signature of payee only – does not restrict further transfer
B7: Special endorsement
B8: “Pay to the order of…”
B9: Qualified endorsement
B10: “Without recourse
B11: Frees endorser (original payee) from future liability if drawer does not honor the check

Sheet CheckingFees
A1: LowerLimit | B1: Average Balance | C1: Maintenance Charge per Month | D1: Per-Check Charge
A2: 0 | B2: Less than $500.00 | C2: 12 | D2: 0.2
A3: 500 | B3: $500.00 - $1,999.99 | C3: 7.5 | D3: 0.2
A4: 2000 | B4: $2,000.00 - $4,999.99 | C4: 5 | D4: 0.1
A5: 5000 | B5: $5,000.00 or more | C5: 0 | D5: 0
A7: Using the table above, what would your monthly service charge be?
A8: Average Balance | B8: 833
A9: # Checks Written | B9: 38
A10: Charge For Month | C10: Maintenance Charge + (# Checks Written)*(Per-Check Charge)
A12: Average Balance | B12: 3149
A13: # Checks Written | B13: 64
A14: Charge For Month | C14: Maintenance Charge + (# Checks Written)*(Per-Check Charge)
A16: Average Balance | B16: 9522
A17: # Checks Written | B17: 500
A18: Charge For Month | C18: Maintenance Charge + (# Checks Written)*(Per-Check Charge)
A20: Average Balance | B20: 50.25
A21: # Checks Written | B21: 17
A22: Charge For Month | C22: Maintenance Charge + (# Checks Written)*(Per-Check Charge)

Sheet CheckingFees (an)
A1: LowerLimit | B1: Average Balance | C1: Maintenance Charge per Month | D1: Per-Check Charge
A2: 0 | B2: Less than $500.00 | C2: 12 | D2: 0.2
A3: 500 | B3: $500.00 - $1,999.99 | C3: 7.5 | D3: 0.2
A4: 2000 | B4: $2,000.00 - $4,999.99 | C4: 5 | D4: 0.1
A5: 5000 | B5: $5,000.00 or more | C5: 0 | D5: 0
A7: Using the table above, what would your monthly service charge be?
A8: Average Balance | B8: 833
A9: # Checks Written | B9: 38
A10: Charge For Month | B10: =C3+B9*D3 -> 15.1 | C10: Maintenance Charge + (# Checks Written)*(Per-Check Charge)
A12: Average Balance | B12: 3149
A13: # Checks Written | B13: 64
A14: Charge For Month | B14: =C4+B13*D4 -> 11.4 | C14: Maintenance Charge + (# Checks Written)*(Per-Check Charge)
A16: Average Balance | B16: 9522
A17: # Checks Written | B17: 500
A18: Charge For Month | B18: 0 | C18: Maintenance Charge + (# Checks Written)*(Per-Check Charge)
A20: Average Balance | B20: 50.25
A21: # Checks Written | B21: 17
A22: Charge For Month | B22: =C2+B21*D2 -> 15.4 | C22: Maintenance Charge + (# Checks Written)*(Per-Check Charge)

Sheet CheckingFees (VLOOKUP)
A1: Average Balance | B1: Average Balance | C1: Maintenance Charge per Month | D1: Per-Check Charge
A2: Less than $500.00 $0 - $499.99 | B2: 0 | C2: 12 | D2: 0.2
A3: $500.00 - $1,999.99 | B3: 500 | C3: 7.5 | D3: 0.2
A4: $2,000.00 - $4,999.99 | B4: 2000 | C4: 5 | D4: 0.1
A5: $5,000.00 or more | B5: 5000 | C5: 0 | D5: 0
A7: Using the table above, what would your monthly service charge be?
A8: Average Balance | B8: 833
A9: # Checks Written | B9: 38
A10: VLOOKUP Maintenance Charge
A11: VLOOKUP Per-Check Charge
A12: Monthly Charge
A14: Monthly Charge
A16: Monthly Charge = Maintenance Charge + (# Checks Written)*(Per-Check Charge)

Sheet CheckingFees (VLOOKUP) (an)
A1: Average Balance | B1: Average Balance | C1: Maintenance Charge per Month | D1: Per-Check Charge
A2: Less than $500.00 $0 - $499.99 | B2: 0 | C2: 12 | D2: 0.2
A3: $500.00 - $1,999.99 | B3: 500 | C3: 7.5 | D3: 0.2
A4: $2,000.00 - $4,999.99 | B4: 2000 | C4: 5 | D4: 0.1
A5: $5,000.00 or more | B5: 5000 | C5: 0 | D5: 0
A7: Using the table above, what would your monthly service charge be?
A8: Average Balance | B8: 2500
A9: # Checks Written | B9: 38
A10: VLOOKUP Maintenance Charge | B10: =VLOOKUP(B8,B2:D5,2) -> 5
A11: VLOOKUP Per-Check Charge | B11: =VLOOKUP(B8,B2:D5,3) -> 0.1
A12: Monthly Charge | B12: =B10+B9*B11 -> 8.8
A14: Monthly Charge | B14: =VLOOKUP(B8,B2:D5,2)+B9*VLOOKUP(B8,B2:D5,3) -> 8.8
A16: Monthly Charge = Maintenance Charge + (# Checks Written)*(Per-Check Charge)

Sheet Check Register
A1: Check No. | B1: Date | C1: Check Issued To | D1: Withdrawal | E1: ü | F1: Date of Deposit | G1: Amount of Deposit | H1: Balance
G2: Balance Forward ==> | H2: 3587.77
A3: 2097 | B3: 1910-06-05 | C3: Starbuck's | D3: 456 | J3: End of Section 5.1
A4: e | B4: 1910-06-06 | C4: Office Depot | D4: 415
A5: 2099 | B5: 1910-06-07 | C5: Whole Foods Market | D5: 157
A6: e | B6: 1910-06-07 | C6: Suix Trucking | D6: 59
B7: 1910-06-08 | C7: Deposit | F7: 1910-06-08 | G7: 588
A8: 2101 | B8: 1910-06-08 | C8: Macbeth Hardwoods | D8: 499
A9: 2102 | B9: 1910-06-08 | C9: Chin Ho | D9: 392
B10: 1910-06-10 | C10: Deposit | F10: 1910-06-10 | G10: 612
A11: 2103 | B11: 1910-06-11 | C11: Home Depot | D11: 411
A12: e | B12: 1910-06-11 | C12: Macbeth Hardwoods | D12: 490
A13: e | B13: 1910-06-11 | C13: Google | D13: 251
A14: 2106 | B14: 1910-06-11 | C14: Starbuck's | D14: 36
A15: 2107 | B15: 1910-06-12 | C15: Sheliadawn Smith | D15: 411
B16: 1910-06-12 | C16: Deposit | F16: 1910-06-12 | G16: 2116
A17: 2108 | B17: 2010-06-13 | C17: Suix Trucking | D17: 50
A18: e | B18: 2010-06-13 | C18: Suix Trucking | D18: 150
A19: e | B19: 2009-06-14 | C19: Google | D19: 20
A20: 2109 | B20: 2009-06-14 | C20: Google | D20: 100
A29: Check No. | B29: Date | C29: Check Issued To | D29: Amount of Check | E29: ü | F29: Date of Deposit | G29: Amount of Deposit | H29: Balance
G30: Balance Forward ==> | H30: 3316.07
A31: 2153 | B31: 1910-08-28 | C31: Dunn Lumber | D31: 342
A32: 2154 | B32: 1910-08-29 | C32: Dunn Lumber | D32: 223
A33: 2155 | B33: 1910-08-30 | C33: Home Depot | D33: 344
A34: 2156 | B34: 1910-08-30 | C34: Macbeth Hardwoods | D34: 350
B35: 1910-08-31 | C35: Deposit | F35: 1910-08-31 | G35: 516
A36: 2157 | B36: 1910-08-31 | C36: Office Depot | D36: 67
A37: 2158 | B37: 1910-08-31 | C37: Home Depot | D37: 423
B38: 1910-09-02 | C38: Deposit | F38: 1910-09-02 | G38: 1974
A39: 2159 | B39: 1910-09-03 | C39: Dunn Lumber | D39: 334
A40: 2160 | B40: 1910-09-03 | C40: Dunn Lumber | D40: 113
A41: 2161 | B41: 1910-09-03 | C41: Starbuck's | D41: 53
A42: 2162 | B42: 1910-09-03 | C42: Whole Foods Market | D42: 155
A43: 2163 | B43: 1910-09-04 | C43: Chin Ho | D43: 154
B44: 1910-09-04 | C44: Deposit | F44: 1910-09-04 | G44: 1483
A57: Check No. | B57: Date | C57: Check Issued To | D57: Amount of Check | E57: ü | F57: Date of Deposit | G57: Amount of Deposit | H57: Balance
G58: Balance Forward ==> | H58: 6962.95
A59: =U58 -> 0 | B59: 2012-02-14 | C59: Whole Foods Market | D59: 279
A60: =A59+1 -> 1 | B60: =B59+1 -> 2012-02-15 | C60: Google | D60: 157
A61: =A60+1 -> 2 | B61: =B60+1 -> 2012-02-16 | C61: Starbuck's | D61: 451
A62: =A61+1 -> 3 | B62: =B61 -> 2012-02-16 | C62: Macbeth Hardwoods | D62: 361
B63: =B62+1 -> 2012-02-17 | C63: Deposit | F63: 1910-11-23 | G63: 2157
A64: =A62+1 -> 4 | B64: =B63 -> 2012-02-17 | C64: Office Depot | D64: 47
A65: =A64+1 -> 5 | B65: =B64 -> 2012-02-17 | C65: Home Depot | D65: 491
B66: =B65+2 -> 2012-02-19 | C66: Deposit | F66: 1910-11-25 | G66: 731
A67: =A65+1 -> 6 | B67: =B66+1 -> 2012-02-20 | C67: Dunn Lumber | D67: 479
A68: =A67+1 -> 7 | B68: =B67 -> 2012-02-20 | C68: Google | D68: 91
A69: =A68+1 -> 8 | B69: =B68 -> 2012-02-20 | C69: Suix Trucking | D69: 132
A70: =A69+1 -> 9 | B70: =B69 -> 2012-02-20 | C70: Suix Trucking | D70: 50
A71: =A70+1 -> 10 | B71: =B70+1 -> 2012-02-21 | C71: Whole Foods Market | D71: 234
B72: =B71 -> 2012-02-21 | C72: Deposit | F72: 1910-11-27 | G72: 918
A85: Check No. | B85: Date | C85: Check Issued To | D85: Amount of Check | E85: ü | F85: Date of Deposit | G85: Amount of Deposit | H85: Balance
G86: Balance Forward ==> | H86: 4943.85
A87: =U86 -> 0 | B87: 2012-02-14 | C87: Macbeth Hardwoods | D87: 376
A88: =A87+1 -> 1 | B88: =B87+1 -> 2012-02-15 | C88: Suix Trucking | D88: 183
A89: =A88+1 -> 2 | B89: =B88+1 -> 2012-02-16 | C89: Chin Ho | D89: 94
A90: =A89+1 -> 3 | B90: =B89 -> 2012-02-16 | C90: Starbuck's | D90: 223
B91: =B90+1 -> 2012-02-17 | C91: Deposit | F91: 1911-02-15 | G91: 1772
A92: =A90+1 -> 4 | B92: =B91 -> 2012-02-17 | C92: Sheliadawn Smith | D92: 466
A93: =A92+1 -> 5 | B93: =B92 -> 2012-02-17 | C93: Dunn Lumber | D93: 492
B94: =B93+2 -> 2012-02-19 | C94: Deposit | F94: 1911-02-17 | G94: 2474
A95: =A93+1 -> 6 | B95: =B94+1 -> 2012-02-20 | C95: Whole Foods Market | D95: 152
A96: =A95+1 -> 7 | B96: =B95 -> 2012-02-20 | C96: Sheliadawn Smith | D96: 168
A97: =A96+1 -> 8 | B97: =B96 -> 2012-02-20 | C97: Dunn Lumber | D97: 226
A98: =A97+1 -> 9 | B98: =B97 -> 2012-02-20 | C98: Starbuck's | D98: 423
A99: =A98+1 -> 10 | B99: =B98+1 -> 2012-02-21 | C99: Home Depot | D99: 61
B100: =B99 -> 2012-02-21 | C100: Deposit | F100: 1911-02-19 | G100: 895
A113: Check No. | B113: Date | C113: Check Issued To | D113: Amount of Check | E113: ü | F113: Date of Deposit | G113: Amount of Deposit | H113: Balance
G114: Balance Forward ==> | H114: 5410.57
A115: =U114 -> 0 | B115: 2012-02-14 | C115: Dunn Lumber | D115: 358
A116: =A115+1 -> 1 | B116: =B115+1 -> 2012-02-15 | C116: Starbuck's | D116: 43
A117: =A116+1 -> 2 | B117: =B116+1 -> 2012-02-16 | C117: Sheliadawn Smith | D117: 472
A118: =A117+1 -> 3 | B118: =B117 -> 2012-02-16 | C118: Office Depot | D118: 151
B119: =B118+1 -> 2012-02-17 | C119: Deposit | F119: 1911-05-10 | G119: 1307
A120: =A118+1 -> 4 | B120: =B119 -> 2012-02-17 | C120: Sheliadawn Smith | D120: 33
A121: =A120+1 -> 5 | B121: =B120 -> 2012-02-17 | C121: Sheliadawn Smith | D121: 431
B122: =B121+2 -> 2012-02-19 | C122: Deposit | F122: 1911-05-12 | G122: 574
A123: =A121+1 -> 6 | B123: =B122+1 -> 2012-02-20 | C123: Suix Trucking | D123: 495
A124: =A123+1 -> 7 | B124: =B123 -> 2012-02-20 | C124: Home Depot | D124: 72
A125: =A124+1 -> 8 | B125: =B124 -> 2012-02-20 | C125: Starbuck's | D125: 414
A126: =A125+1 -> 9 | B126: =B125 -> 2012-02-20 | C126: Whole Foods Market | D126: 298
A127: =A126+1 -> 10 | B127: =B126+1 -> 2012-02-21 | C127: Office Depot | D127: 395
B128: =B127 -> 2012-02-21 | C128: Deposit | F128: 1911-05-14 | G128: 2152

Sheet Check Register (an)
A1: Check No. | B1: Date | C1: Check Issued To | D1: Withdrawal | E1: ü | F1: Date of Deposit | G1: Amount of Deposit | H1: Balance
G2: Balance Forward ==> | H2: 3587.77
A3: 2097 | B3: 1910-06-05 | C3: Starbuck's | D3: 456 | H3: =IF(C3="","",H2-D3+G3) -> 3131.77 | I3: =H2-D3+G3 -> 3131.77 | K3: =I3=H3 -> TRUE
A4: e | B4: 1910-06-06 | C4: Office Depot | D4: 415 | H4: =IF(C4="","",H3-D4+G4) -> 2716.77 | I4: =H3-D4+G4 -> 2716.77 | K4: =I4=H4 -> TRUE
A5: 2099 | B5: 1910-06-07 | C5: Whole Foods Market | D5: 157 | H5: 2559.77 | I5: 2559.77 | K5: TRUE
A6: e | B6: 1910-06-07 | C6: Suix Trucking | D6: 59 | H6: 2500.77 | I6: 2500.77 | K6: TRUE
B7: 1910-06-08 | C7: Deposit | F7: 1910-06-08 | G7: 588 | H7: 3088.77 | I7: 3088.77 | K7: TRUE
A8: 2101 | B8: 1910-06-08 | C8: Macbeth Hardwoods | D8: 499 | H8: 2589.77 | I8: 2589.77 | K8: TRUE
A9: 2102 | B9: 1910-06-08 | C9: Chin Ho | D9: 392 | H9: 2197.77 | I9: 2197.77 | K9: TRUE
B10: 1910-06-10 | C10: Deposit | F10: 1910-06-10 | G10: 612 | H10: 2809.77 | I10: 2809.77 | K10: TRUE
A11: 2103 | B11: 1910-06-11 | C11: Home Depot | D11: 411 | H11: 2398.77
A12: e | B12: 1910-06-11 | C12: Macbeth Hardwoods | D12: 490 | H12: 1908.77
A13: e | B13: 1910-06-11 | C13: Google | D13: 251 | H13: 1657.77
A14: 2106 | B14: 1910-06-11 | C14: Starbuck's | D14: 36 | H14: 1621.77
A15: 2107 | B15: 1910-06-12 | C15: Sheliadawn Smith | D15: 411 | H15: 1210.77
B16: 1910-06-12 | C16: Deposit | F16: 1910-06-12 | G16: 2116 | H16: 3326.77
A17: 2108 | B17: 2010-06-13 | C17: Suix Trucking | D17: 50 | H17: 3276.77
A18: e | B18: 2010-06-13 | C18: Suix Trucking | D18: 150 | H18: 3126.77
A19: e | B19: 2009-06-14 | C19: Google | D19: 20 | H19: 3106.77
A20: 2109 | B20: 2009-06-14 | C20: Google | D20: 100 | H20: 3006.77
A29: Check No. | B29: Date | C29: Check Issued To | D29: Amount of Check | E29: ü | F29: Date of Deposit | G29: Amount of Deposit | H29: Balance
G30: Balance Forward ==> | H30: 3316.07
A31: 2153 | B31: 1910-08-28 | C31: Dunn Lumber | D31: 342 | H31: =IF(C31="","",H30-D31+G31) -> 2974.07
A32: 2154 | B32: 1910-08-29 | C32: Dunn Lumber | D32: 223 | H32: =IF(C32="","",H31-D32+G32) -> 2751.07
A33: 2155 | B33: 1910-08-30 | C33: Home Depot | D33: 344 | H33: 2407.07
A34: 2156 | B34: 1910-08-30 | C34: Macbeth Hardwoods | D34: 350 | H34: 2057.07
B35: 1910-08-31 | C35: Deposit | F35: 1910-08-31 | G35: 516 | H35: 2573.07
A36: 2157 | B36: 1910-08-31 | C36: Office Depot | D36: 67 | H36: 2506.07
A37: 2158 | B37: 1910-08-31 | C37: Home Depot | D37: 423 | H37: 2083.07
B38: 1910-09-02 | C38: Deposit | F38: 1910-09-02 | G38: 1974 | H38: 4057.07
A39: 2159 | B39: 1910-09-03 | C39: Dunn Lumber | D39: 334 | H39: 3723.07
A40: 2160 | B40: 1910-09-03 | C40: Dunn Lumber | D40: 113 | H40: 3610.07
A41: 2161 | B41: 1910-09-03 | C41: Starbuck's | D41: 53 | H41: 3557.07
A42: 2162 | B42: 1910-09-03 | C42: Whole Foods Market | D42: 155 | H42: 3402.07
A43: 2163 | B43: 1910-09-04 | C43: Chin Ho | D43: 154 | H43: 3248.07
B44: 1910-09-04 | C44: Deposit | F44: 1910-09-04 | G44: 1483 | H44: 4731.07
A57: Check No. | B57: Date | C57: Check Issued To | D57: Amount of Check | E57: ü | F57: Date of Deposit | G57: Amount of Deposit | H57: Balance
G58: Balance Forward ==> | H58: 6962.95
A59: =U58 -> 0 | B59: =U59 -> 00:00:00 | C59: Whole Foods Market | D59: 279
A60: =A59+1 -> 1 | B60: =B59+1 -> 1900-01-01 | C60: Google | D60: 157
A61: =A60+1 -> 2 | B61: =B60+1 -> 1900-01-02 | C61: Starbuck's | D61: 451
A62: =A61+1 -> 3 | B62: =B61 -> 1900-01-02 | C62: Macbeth Hardwoods | D62: 361
B63: =B62+1 -> 1900-01-03 | C63: Deposit | F63: 1910-11-23 | G63: 2157
A64: =A62+1 -> 4 | B64: =B63 -> 1900-01-03 | C64: Office Depot | D64: 47
A65: =A64+1 -> 5 | B65: =B64 -> 1900-01-03 | C65: Home Depot | D65: 491
B66: =B65+2 -> 1900-01-05 | C66: Deposit | F66: 1910-11-25 | G66: 731
A67: =A65+1 -> 6 | B67: =B66+1 -> 1900-01-06 | C67: Dunn Lumber | D67: 479
A68: =A67+1 -> 7 | B68: =B67 -> 1900-01-06 | C68: Google | D68: 91
A69: =A68+1 -> 8 | B69: =B68 -> 1900-01-06 | C69: Suix Trucking | D69: 132
A70: =A69+1 -> 9 | B70: =B69 -> 1900-01-06 | C70: Suix Trucking | D70: 50
A71: =A70+1 -> 10 | B71: =B70+1 -> 1900-01-07 | C71: Whole Foods Market | D71: 234
B72: =B71 -> 1900-01-07 | C72: Deposit | F72: 1910-11-27 | G72: 918
A85: Check No. | B85: Date | C85: Check Issued To | D85: Amount of Check | E85: ü | F85: Date of Deposit | G85: Amount of Deposit | H85: Balance
G86: Balance Forward ==> | H86: 4943.85
A87: =U86 -> 0 | B87: =U87 -> 00:00:00 | C87: Macbeth Hardwoods | D87: 376
A88: =A87+1 -> 1 | B88: =B87+1 -> 1900-01-01 | C88: Suix Trucking | D88: 183
A89: =A88+1 -> 2 | B89: =B88+1 -> 1900-01-02 | C89: Chin Ho | D89: 94
A90: =A89+1 -> 3 | B90: =B89 -> 1900-01-02 | C90: Starbuck's | D90: 223
B91: =B90+1 -> 1900-01-03 | C91: Deposit | F91: 1911-02-15 | G91: 1772
A92: =A90+1 -> 4 | B92: =B91 -> 1900-01-03 | C92: Sheliadawn Smith | D92: 466
A93: =A92+1 -> 5 | B93: =B92 -> 1900-01-03 | C93: Dunn Lumber | D93: 492
B94: =B93+2 -> 1900-01-05 | C94: Deposit | F94: 1911-02-17 | G94: 2474
A95: =A93+1 -> 6 | B95: =B94+1 -> 1900-01-06 | C95: Whole Foods Market | D95: 152
A96: =A95+1 -> 7 | B96: =B95 -> 1900-01-06 | C96: Sheliadawn Smith | D96: 168
A97: =A96+1 -> 8 | B97: =B96 -> 1900-01-06 | C97: Dunn Lumber | D97: 226
A98: =A97+1 -> 9 | B98: =B97 -> 1900-01-06 | C98: Starbuck's | D98: 423
A99: =A98+1 -> 10 | B99: =B98+1 -> 1900-01-07 | C99: Home Depot | D99: 61
B100: =B99 -> 1900-01-07 | C100: Deposit | F100: 1911-02-19 | G100: 895
A113: Check No. | B113: Date | C113: Check Issued To | D113: Amount of Check | E113: ü | F113: Date of Deposit | G113: Amount of Deposit | H113: Balance
G114: Balance Forward ==> | H114: 5410.57
A115: =U114 -> 0 | B115: =U115 -> 00:00:00 | C115: Dunn Lumber | D115: 358
A116: =A115+1 -> 1 | B116: =B115+1 -> 1900-01-01 | C116: Starbuck's | D116: 43
A117: =A116+1 -> 2 | B117: =B116+1 -> 1900-01-02 | C117: Sheliadawn Smith | D117: 472
A118: =A117+1 -> 3 | B118: =B117 -> 1900-01-02 | C118: Office Depot | D118: 151
B119: =B118+1 -> 1900-01-03 | C119: Deposit | F119: 1911-05-10 | G119: 1307
A120: =A118+1 -> 4 | B120: =B119 -> 1900-01-03 | C120: Sheliadawn Smith | D120: 33
A121: =A120+1 -> 5 | B121: =B120 -> 1900-01-03 | C121: Sheliadawn Smith | D121: 431
B122: =B121+2 -> 1900-01-05 | C122: Deposit | F122: 1911-05-12 | G122: 574
A123: =A121+1 -> 6 | B123: =B122+1 -> 1900-01-06 | C123: Suix Trucking | D123: 495
A124: =A123+1 -> 7 | B124: =B123 -> 1900-01-06 | C124: Home Depot | D124: 72
A125: =A124+1 -> 8 | B125: =B124 -> 1900-01-06 | C125: Starbuck's | D125: 414
A126: =A125+1 -> 9 | B126: =B125 -> 1900-01-06 | C126: Whole Foods Market | D126: 298
A127: =A126+1 -> 10 | B127: =B126+1 -> 1900-01-07 | C127: Office Depot | D127: 395
B128: =B127 -> 1900-01-07 | C128: Deposit | F128: 1911-05-14 | G128: 2152

Sheet CreditCardFees
A1: Your business sells flowers. You except XXXX Credit Card. When you swipe the credit card from a customer when they are buying flowers, the credit card will charge your business a fee (about 2%) and deposit the money in your bank in about 1 day.
A2: Credit Card Sales | C2: ="Total "&A2 -> Total Credit Card Sales
A3: 82.31 | C3: ="Total "&A11 -> Total Credit Card Refunds
A4: 38.18 | C4: Net Credit Card Sales | F4: Credit Card Fee %
A5: 249.33 | C5: Total Fee | F5: 0.0195
A6: 46.8 | C6: Net Deposit in | F6: =F5 -> 0.0195
A7: 146.5 | F7: Check Round:
A8: 78.8
A9: 470.15
A10: 320.9
A11: Credit Card Refunds
A12: 43.83
A13: 85.95
A15: **Note about customer: The customer pays the Credit Card company later and if the customer pays late, he will pay a fee (interest).
A17: If you ran a boomerang selling internet site, and you sold $100.00 worth of boomerangs to a customer and collected tax (because the sale is in the state), what would the credit card fee ( 3.50% ) be and how much would be credited to your business merchant checking account?
C18: # Booms | D18: 5
C19: Price Each | D19: 20
C20: Subtotal | F20: Sales Tax
C21: Collected Sales Tax | F21: 0.0825
A22: **No CC Refund | C22: Total Customer Pays You | E22: <<== What is listed on bottom on Invoice
F24: Cedit Card Fee %
C25: Credit Card Fee | F25: 0.035
C26: Net Deposit in

Sheet CreditCardFees (an)
A1: Your business sells flowers. You except XXXX Credit Card. When you swipe the credit card from a customer when they are buying flowers, the credit card will charge your business a fee (about 2%) and deposit the money in your bank in about 1 day.
A2: Credit Card Sales | C2: ="Total "&A2 -> Total Credit Card Sales | D2: =SUM(A3:A10) -> 1432.97
A3: 82.31 | C3: ="Total "&A11 -> Total Credit Card Refunds | D3: =SUM(A12:A13) -> 129.78
A4: 38.18 | C4: Net Credit Card Sales | D4: =D2-D3 -> 1303.19 | F4: Cedit Card Fee %
A5: 249.33 | C5: Total Fee | D5: =ROUND(D4*F5,2) -> 25.41 | F5: 0.0195
A6: 46.8 | C6: Net Deposit in | D6: =D4-D5 -> 1277.78
A7: 146.5 | F7: Check Round:
A8: 78.8 | F8: =D4*F5 -> 25.412205
A9: 470.15
A10: 320.9
A11: Credit Card Refunds
A12: 43.83
A13: 85.95
A15: **Note about customer: The customer pays the Credit Card company later and if the customer pays late, he will pay a fee (interest).
A17: If you ran a boomerang selling internet site, and you sold $100.00 worth of boomerangs to a customer and collected tax (because the sale is in the state), what would the credit card fee ( 3.50% ) be and how much would be credited to your business merchant checking account?
C18: # Booms | D18: 5
C19: Price Each | D19: 20
C20: Subtotal | D20: =D19*D18 -> 100 | F20: Sales Tax
C21: Collected Sales Tax | D21: =ROUND(D20*F21,2) -> 8.25 | F21: 0.0825
A22: **No CC Refund | C22: Total Customer Pays You | D22: =SUM(D20:D21) -> 108.25 | E22: <<== What is listed on bottom on Invoice
F24: Cedit Card Fee %
C25: Credit Card Fee | D25: =ROUND(D22*F25,2) -> 3.79 | F25: 0.035
C26: Net Deposit in | D26: =D22-D25 -> 104.46

Sheet Services
A1: Bank Services & Fees
A2: ATM Card | B2: Allows you to login to an ATM machine and conduct banking | I2: End of Section 5.2
B3: transactions like, withdraw cash, deposits, check balances,
B4: transfer fees, etc. No fees at bank's ATM, can be as $3 on other
B5: banks machines.
A6: NSF | B6: Nonsufficient funds to cover a withdrawal from your account
B7: ("Bounced Check", automatic bill pay, etc.) - fees can be as high
B8: as $25, $35.
A9: Improperly Filled Out Check | B9: Check returned because it is not filled out correctly - fees can be
B10: as high as $25, $35.
A11: Overdraft Protection | B11: Protects against NSF - charges vary.
A12: Returned-Deposit item | B12: NSF for a check you try to deposit that came someone else - fees
B13: about $25.
A14: Stop-Payment order | B14: You request a stop payment on a check you wrote - fees
B15: about $30.
A16: Cashier's Check | B16: Check written by the bank (like cash) - about $10.
A17: Money Order | B17: Purchase instrument similar to cash - about $5.
A18: Notary Service | B18: Official certification of a signature on a document. Charges vary.
A19: Online Banking | B19: Check Balances, Transfer Fees, Bill Pay, Check Statements,
B20: Reconcile Accounts, Apply for Loans or Credit Cards.
A21: PayPal | B21: Transactions are safer than credit cards because no financial
B22: information is shared (but watch out for e-mail scams)
A23: Credit Unions | B23: Are less expensive and provide more services for free because
B24: they are cooperatives (like BECU)

Sheet Why Bank Reconcilations
A1: Define Terms:
A2: Outstanding checks
A3: Checks that the business has written that have not arrived at the bank yet
A4: NSF checks "Not Sufficient Funds"
A5: Checks that we originally deposited in the bank, but did not clear (bank did not collect on them) because the person/business that gave the check to us did not have enough money in the account!
A6: Deposits In Transit
A7: Deposits that we have made that the bank has not received yet
A8: Why Bank Reconciliations?
A9: Because there are things in our check book that the bank does not know about (like outstanding checks)
A10: Because there are things on the bank statement that we have not put into our check book yet (like service charge or NSF checks)
A12: Your checkbook balance almost never will equal the bank statement balance!
A13: Banks make mistakes
A14: Verify checking account records with those of the bank
A15: Check accuracy of:
A16: Checks written
A17: Deposits made
A18: Service charges incurred
A19: Interest earned

Sheet Reconciling
A1: Business Checkbook | J1: Bank Statement
A2: Check No. | B2: Date | C2: Transaction Description | D2: Withdrawal | E2: ü | F2: Date of Deposit | G2: Amount of Deposit or Credit | H2: Balance | J2: Check No. | K2: ü | L2: Withdrawals | M2: Deposits | N2: Date | O2: Balance
A3: Balance Forward ==> | H3: 3538.32 | N3: =B4 -> 2007-05-01 | O3: 3211.2
A4: 1256 | B4: 2007-05-01 | C4: Name 1 | D4: 108.5 | E4: x | H4: =H3+G4-D4 -> 3429.82 | J4: =A5 -> e | L4: =D5 -> 75 | N4: =N3+2 -> 2007-05-03 | O4: =O3+M4-L4 -> 3136.2
A5: e | B5: =B4+1 -> 2007-05-02 | C5: Name 2 | D5: 75 | H5: 3354.82 | M5: =G7 -> 1201.12 | N5: =F7+2 -> 2007-05-12 | O5: 4337.32
A6: =A4+1 -> 1257 | B6: =B5+6 -> 2007-05-08 | C6: Name 3 | D6: 218.62 | E6: x | H6: 3136.2 | J6: =A8 -> e | L6: =D8 -> 836.15 | N6: =N5+4 -> 2007-05-16 | O6: 3501.17
C7: Deposit | F7: =B6+2 -> 2007-05-10 | G7: 1201.12 | H7: 4337.32 | J7: =A9 -> 1258 | L7: =D9 -> 400 | N7: =N6+2 -> 2007-05-18 | O7: 3101.17
A8: e | B8: =F7+5 -> 2007-05-15 | C8: Name 4 | D8: 836.15 | H8: 3501.17 | J8: RC | L8: 49.07 | N8: =N7 -> 2007-05-18 | O8: 3052.1
A9: =A6+1 -> 1258 | B9: =B8+1 -> 2007-05-16 | C9: Name 5 | D9: 400 | H9: 3101.17 | J9: =A11 -> 1260 | L9: =D11 -> 60.01 | N9: =N8+5 -> 2007-05-23 | O9: 2992.09
A10: =A9+1 -> 1259 | B10: =B9+2 -> 2007-05-18 | C10: Name 6 | D10: 25.33 | H10: 3075.84 | J10: ATM | L10: =D14 -> 40 | N10: =B14 -> 2007-05-26 | O10: 2952.09
A11: =A10+1 -> 1260 | B11: =B10+5 -> 2007-05-23 | C11: Name 7 | D11: 60.01 | H11: 3015.83 | J11: IC | M11: 3.22 | N11: =EOMONTH(N10,0) -> 2007-05-31 | O11: 2955.31
A12: =A11+1 -> 1261 | B12: =B11+1 -> 2007-05-24 | C12: Name 8 | D12: 97.37 | H12: 2918.46 | J12: SC | L12: 7.6 | N12: =EOMONTH(N11,0) -> 2007-05-31 | O12: 2947.71
C13: Deposit | F13: =B12+2 -> 2007-05-26 | G13: 865.5 | H13: 3783.96 | J13: CP | L13: 12 | N13: 2007-05-31 | O13: 2935.71
A14: ATM | B14: =F13 -> 2007-05-26 | D14: 40 | H14: 3743.96
A18: Items that bank does not know about, add | J18: Items we don't know about, add
A19: items that bank does not know about, subtract | J19: items we don't know about, subtract | Q19: Checks Outstanding | S19: Compare the list of checks paid by the bank with your records. List and total the checks not yet paid.
Q20: Number | R20: Amount
S21: 1 | T21: Enter new balance from bank statement:
S23: 2 | T23: List any deposits made by you and | W23: +
T24: not yet recorded by the bank: | W24: +
A25: End of Section 5.3 | W25: +
W26: +
S27: 3 | T27: Add all numbers from lines above.
T28: Total:
S29: 4 | T29: Total of checks outstanding: | W29: -
S30: 5 | T30: Subtract (4) from (3). This is the adjusted balance
Q32: Total
Q34: To reconcile your records:
Q35: 6 | R35: List your checkbook balance
Q36: 7 | R36: Write the total of any fees or charges deducted by the bank and not yet subtracted by you from your checkbook: | U36: -
Q37: 8 | R37: Subtract line (7) from line (6).
Q38: 9 | R38: Add interest credit: | U38: +
Q39: 10 | R39: Add line (9) to line (8). This is the checkbook balance.

Sheet Reconciling(an)
A1: Business Checkbook | J1: Bank Statement
A2: Check No. | B2: Date | C2: Transaction Description | D2: Withdrawal | E2: ü | F2: Date of Deposit | G2: Amount of Deposit or Credit | H2: Balance | J2: Check No. | K2: ü | L2: Withdrawals | M2: Deposits | N2: Date | O2: Balance
A3: Balance Forward ==> | H3: 3538.32 | N3: =B4 -> 2007-05-01 | O3: 3211.2
A4: 1256 | B4: 2007-05-01 | C4: Name 1 | D4: 108.5 | E4: x | H4: =H3+G4-D4 -> 3429.82 | J4: =A5 -> e | K4: x | L4: =D5 -> 75 | N4: =N3+2 -> 2007-05-03 | O4: =O3+M4-L4 -> 3136.2
A5: e | B5: =B4+1 -> 2007-05-02 | C5: Name 2 | D5: 75 | E5: x | H5: 3354.82 | K5: x | M5: =G7 -> 1201.12 | N5: =F7+2 -> 2007-05-12 | O5: 4337.32
A6: =A4+1 -> 1257 | B6: =B5+6 -> 2007-05-08 | C6: Name 3 | D6: 218.62 | E6: x | H6: 3136.2 | J6: =A8 -> e | K6: x | L6: =D8 -> 836.15 | N6: =N5+4 -> 2007-05-16 | O6: 3501.17
C7: Deposit | E7: x | F7: =B6+2 -> 2007-05-10 | G7: 1201.12 | H7: 4337.32 | J7: =A9 -> 1258 | K7: x | L7: =D9 -> 400 | N7: =N6+2 -> 2007-05-18 | O7: 3101.17
A8: e | B8: =F7+5 -> 2007-05-15 | C8: Name 4 | D8: 836.15 | E8: x | H8: 3501.17 | J8: RC | L8: 49.07 | N8: =N7 -> 2007-05-18 | O8: 3052.1
A9: =A6+1 -> 1258 | B9: =B8+1 -> 2007-05-16 | C9: Name 5 | D9: 400 | E9: x | H9: 3101.17 | J9: =A11 -> 1260 | K9: x | L9: =D11 -> 60.01 | N9: =N8+5 -> 2007-05-23 | O9: 2992.09
A10: =A9+1 -> 1259 | B10: =B9+2 -> 2007-05-18 | C10: Name 6 | D10: 25.33 | H10: 3075.84 | J10: ATM | K10: x | L10: =D14 -> 40 | N10: =B14 -> 2007-05-26 | O10: 2952.09
A11: =A10+1 -> 1260 | B11: =B10+5 -> 2007-05-23 | C11: Name 7 | D11: 60.01 | E11: x | H11: 3015.83 | J11: IC | M11: 3.22 | N11: =EOMONTH(N10,0) -> 2007-05-31 | O11: 2955.31
A12: =A11+1 -> 1261 | B12: =B11+1 -> 2007-05-24 | C12: Name 8 | D12: 97.37 | H12: 2918.46 | J12: SC | L12: 7.6 | N12: =EOMONTH(N11,0) -> 2007-05-31 | O12: 2947.71
C13: Deposit | F13: =B12+2 -> 2007-05-26 | G13: 865.5 | H13: 3783.96 | J13: CP | L13: 12 | N13: 2007-05-31 | O13: 2935.71
A14: ATM | B14: =F13 -> 2007-05-26 | D14: 40 | E14: x | H14: 3743.96
A18: Items that bank does not know about, add | H18: =G13 -> 865.5 | J18: Items we don't know about, add | N18: =M11 -> 3.22
A19: items that bank does not know about, subtract | H19: =D10+D12 -> 122.7 | J19: items we don't know about, subtract | N19: =L8+L12+L13 -> 68.67 | Q19: Checks Outstanding | S19: Compare the list of checks paid by the bank with your records. List and total the checks not yet paid.
Q20: Number | R20: Amount
S21: 1 | T21: Enter new balance from bank statement: | X21: =O13 -> 2935.71
S23: 2 | T23: List any deposits made by you and | W23: + | X23: =H18 -> 865.5
T24: not yet recorded by the bank: | W24: +
W25: +
W26: +
S27: 3 | T27: Add all numbers from lines above.
T28: Total: | X28: =SUM(X21:X26) -> 3801.21
S29: 4 | T29: Total of checks outstanding: | W29: - | X29: =H19 -> 122.7
S30: 5 | T30: Subtract (4) from (3). This is the adjusted balance | X30: =X28-X29 -> 3678.51
Q32: Total
Q34: To reconcile your records:
Q35: 6 | R35: List your checkbook balance | V35: =H14 -> 3743.96
Q36: 7 | R36: Write the total of any fees or charges deducted by the bank and not yet subtracted by you from your checkbook: | U36: - | V36: =N19 -> 68.67
Q37: 8 | R37: Subtract line (7) from line (6). | V37: =V35-V36 -> 3675.29
Q38: 9 | R38: Add interest credit: | U38: + | V38: =N18 -> 3.22
Q39: 10 | R39: Add line (9) to line (8). This is the checkbook balance. | V39: =SUM(V37:V38) -> 3678.51
V42: =V39=X30 -> TRUE

Sheet CF and DVL
A1: Business Checkbook | J1: Bank Statement
A2: Check No. | B2: Date | C2: Transaction Description | D2: Withdrawal | E2: ü | F2: Date of Deposit | G2: Amount of Deposit or Credit | H2: Balance | J2: Check No. | K2: ü | L2: Withdrawals | M2: Deposits | N2: Date | O2: Balance
A3: Balance Forward ==> | H3: 3538.32 | N3: =B4 -> 2007-05-01 | O3: 3211.2
A4: 1256 | B4: 2007-05-01 | C4: Name 1 | D4: 108.5 | E4: x | H4: =H3+G4-D4 -> 3429.82 | J4: =A5 -> e | K4: x | L4: =D5 -> 75 | N4: =N3+2 -> 2007-05-03 | O4: =O3+M4-L4 -> 3136.2
A5: e | B5: =B4+1 -> 2007-05-02 | C5: Name 2 | D5: 75 | E5: x | H5: 3354.82 | K5: x | M5: =G7 -> 1201.12 | N5: =F7+2 -> 2007-05-12 | O5: 4337.32
A6: =A4+1 -> 1257 | B6: =B5+6 -> 2007-05-08 | C6: Name 3 | D6: 218.62 | E6: x | H6: 3136.2 | J6: =A8 -> e | K6: x | L6: =D8 -> 836.15 | N6: =N5+4 -> 2007-05-16 | O6: 3501.17
C7: Deposit | E7: x | F7: =B6+2 -> 2007-05-10 | G7: 1201.12 | H7: 4337.32 | J7: =A9 -> 1258 | K7: x | L7: =D9 -> 400 | N7: =N6+2 -> 2007-05-18 | O7: 3101.17
A8: e | B8: =F7+5 -> 2007-05-15 | C8: Name 4 | D8: 836.15 | E8: x | H8: 3501.17 | J8: RC | L8: 49.07 | N8: =N7 -> 2007-05-18 | O8: 3052.1
A9: =A6+1 -> 1258 | B9: =B8+1 -> 2007-05-16 | C9: Name 5 | D9: 400 | E9: x | H9: 3101.17 | J9: =A11 -> 1260 | L9: =D11 -> 60.01 | N9: =N8+5 -> 2007-05-23 | O9: 2992.09
A10: =A9+1 -> 1259 | B10: =B9+2 -> 2007-05-18 | C10: Name 6 | D10: 25.33 | H10: 3075.84 | J10: ATM | L10: =D14 -> 40 | N10: =B14 -> 2007-05-26 | O10: 2952.09
A11: =A10+1 -> 1260 | B11: =B10+5 -> 2007-05-23 | C11: Name 7 | D11: 60.01 | H11: 3015.83 | J11: IC | M11: 3.22 | N11: =EOMONTH(N10,0) -> 2007-05-31 | O11: 2955.31
A12: =A11+1 -> 1261 | B12: =B11+1 -> 2007-05-24 | C12: Name 8 | D12: 97.37 | H12: 2918.46 | J12: SC | L12: 7.6 | N12: =EOMONTH(N11,0) -> 2007-05-31 | O12: 2947.71
C13: Deposit | F13: =B12+2 -> 2007-05-26 | G13: 865.5 | H13: 3783.96 | J13: CP | L13: 12 | N13: 2007-05-31 | O13: 2935.71
A14: ATM | B14: =F13 -> 2007-05-26 | D14: 40 | H14: 3743.96
A18: Items that bank does not know about, that we need to add | H18: =G13 -> 865.5 | J18: Items we don't know about, add | N18: =M11 -> 3.22
A19: items that bank does not know about, that we need to subtract | H19: =D10+D12 -> 122.7 | J19: items we don't know about, subtract | N19: =L8+L12+L13 -> 68.67 | Q19: Checks Outstanding | S19: Compare the list of checks paid by the bank with your records. List and total the checks not yet paid.
Q20: Number | R20: Amount
S21: 1 | T21: Enter new balance from bank statement: | X21: =O13 -> 2935.71
S23: 2 | T23: List any deposits made by you and | W23: + | X23: =H18 -> 865.5
T24: not yet recorded by the bank: | W24: +
W25: +
W26: +
S27: 3 | T27: Add all numbers from lines above.
T28: Total: | X28: =SUM(X21:X26) -> 3801.21
S29: 4 | T29: Total of checks outstanding: | W29: - | X29: =H19 -> 122.7
S30: 5 | T30: Subtract (4) from (3). This is the adjusted balance | X30: =X28-X29 -> 3678.51
Q32: Total
Q34: To reconcile your records:
Q35: 6 | R35: List your checkbook balance | V35: =H14 -> 3743.96
Q36: 7 | R36: Write the total of any fees or charges deducted by the bank and not yet subtracted by you from your checkbook: | U36: - | V36: =N19 -> 68.67
Q37: 8 | R37: Subtract line (7) from line (6). | V37: =V35-V36 -> 3675.29
Q38: 9 | R38: Add interest credit: | U38: + | V38: =N18 -> 3.22
Q39: 10 | R39: Add line (9) to line (8). This is the checkbook balance. | V39: =SUM(V37:V38) -> 3678.51
V42: =V39=X30 -> TRUE

Sheet CF and DVL (an)
A1: Business Checkbook | J1: Bank Statement
A2: Check No. | B2: Date | C2: Transaction Description | D2: Withdrawal | E2: ü | F2: Date of Deposit | G2: Amount of Deposit or Credit | H2: Balance | J2: Check No. | K2: ü | L2: Withdrawals | M2: Deposits | N2: Date | O2: Balance
A3: Balance Forward ==> | H3: 3538.32 | N3: =B4 -> 2007-05-01 | O3: 3211.2
A4: 1256 | B4: 2007-05-01 | C4: Name 1 | D4: 108.5 | E4: x | H4: =H3+G4-D4 -> 3429.82 | J4: =A5 -> e | K4: x | L4: =D5 -> 75 | N4: =N3+2 -> 2007-05-03 | O4: =O3+M4-L4 -> 3136.2
A5: e | B5: =B4+1 -> 2007-05-02 | C5: Name 2 | D5: 75 | E5: x | H5: 3354.82 | K5: x | M5: =G7 -> 1201.12 | N5: =F7+2 -> 2007-05-12 | O5: 4337.32
A6: =A4+1 -> 1257 | B6: =B5+6 -> 2007-05-08 | C6: Name 3 | D6: 218.62 | E6: x | H6: 3136.2 | J6: =A8 -> e | K6: x | L6: =D8 -> 836.15 | N6: =N5+4 -> 2007-05-16 | O6: 3501.17
C7: Deposit | E7: x | F7: =B6+2 -> 2007-05-10 | G7: 1201.12 | H7: 4337.32 | J7: =A9 -> 1258 | K7: x | L7: =D9 -> 400 | N7: =N6+2 -> 2007-05-18 | O7: 3101.17
A8: e | B8: =F7+5 -> 2007-05-15 | C8: Name 4 | D8: 836.15 | E8: x | H8: 3501.17 | J8: RC | L8: 49.07 | N8: =N7 -> 2007-05-18 | O8: 3052.1
A9: =A6+1 -> 1258 | B9: =B8+1 -> 2007-05-16 | C9: Name 5 | D9: 400 | E9: x | H9: 3101.17 | J9: =A11 -> 1260 | K9: x | L9: =D11 -> 60.01 | N9: =N8+5 -> 2007-05-23 | O9: 2992.09
A10: =A9+1 -> 1259 | B10: =B9+2 -> 2007-05-18 | C10: Name 6 | D10: 25.33 | H10: 3075.84 | J10: ATM | K10: x | L10: =D14 -> 40 | N10: =B14 -> 2007-05-26 | O10: 2952.09
A11: =A10+1 -> 1260 | B11: =B10+5 -> 2007-05-23 | C11: Name 7 | D11: 60.01 | E11: x | H11: 3015.83 | J11: IC | M11: 3.22 | N11: =EOMONTH(N10,0) -> 2007-05-31 | O11: 2955.31
A12: =A11+1 -> 1261 | B12: =B11+1 -> 2007-05-24 | C12: Name 8 | D12: 97.37 | H12: 2918.46 | J12: SC | L12: 7.6 | N12: =EOMONTH(N11,0) -> 2007-05-31 | O12: 2947.71
C13: Deposit | F13: =B12+2 -> 2007-05-26 | G13: 865.5 | H13: 3783.96 | J13: CP | L13: 12 | N13: 2007-05-31 | O13: 2935.71
A14: ATM | B14: =F13 -> 2007-05-26 | D14: 40 | E14: x | H14: 3743.96
A18: Items that bank does not know about, that we need to add | H18: =G13 -> 865.5 | J18: Items we don't know about, add | N18: =M11 -> 3.22
A19: items that bank does not know about, that we need to subtract | H19: =D10+D12 -> 122.7 | J19: items we don't know about, subtract | N19: =L8+L12+L13 -> 68.67 | Q19: Checks Outstanding | S19: Compare the list of checks paid by the bank with your records. List and total the checks not yet paid.
Q20: Number | R20: Amount
S21: 1 | T21: Enter new balance from bank statement: | X21: =O13 -> 2935.71
S23: 2 | T23: List any deposits made by you and | W23: + | X23: =H18 -> 865.5
T24: not yet recorded by the bank: | W24: +
W25: +
W26: +
S27: 3 | T27: Add all numbers from lines above.
T28: Total: | X28: =SUM(X21:X26) -> 3801.21
S29: 4 | T29: Total of checks outstanding: | W29: - | X29: =H19 -> 122.7
S30: 5 | T30: Subtract (4) from (3). This is the adjusted balance | X30: =X28-X29 -> 3678.51
Q32: Total
Q34: To reconcile your records:
Q35: 6 | R35: List your checkbook balance | V35: =H14 -> 3743.96
Q36: 7 | R36: Write the total of any fees or charges deducted by the bank and not yet subtracted by you from your checkbook: | U36: - | V36: =N19 -> 68.67
Q37: 8 | R37: Subtract line (7) from line (6). | V37: =V35-V36 -> 3675.29
Q38: 9 | R38: Add interest credit: | U38: + | V38: =N18 -> 3.22
Q39: 10 | R39: Add line (9) to line (8). This is the checkbook balance. | V39: =SUM(V37:V38) -> 3678.51
V42: =V39=X30 -> TRUE

Sheet HW ==>>

Sheet 5(1)
A1: 7 | B1: LowerLimit | C1: Average Balance | D1: Maintenance Charge per Month | E1: Per-Check Charge | K1: Average Balance | L1: Maintenance Charge per Month | M1: Per-Check Charge
B2: 0 | C2: Less than $500.00 | D2: 12 | E2: 0.2 | K2: 0 | L2: 12 | M2: 0.2
B3: 500 | C3: $500.00 - $1,999.99 | D3: 7.5 | E3: 0.2 | K3: 500 | L3: 7.5 | M3: 0.2
B4: 2000 | C4: $2,000.00 - $4,999.99 | D4: 5 | E4: 0.1 | K4: 2000 | L4: 5 | M4: 0.1
B5: 5000 | C5: $5,000.00 or more | D5: 0 | E5: 0 | K5: 5000 | L5: 0 | M5: 0
B7: Using the table above, what would your monthly service charge be?
B8: Average Balance | C8: 516
B9: # Checks Written | C9: 72 | L9: Check
B10: Charge For Month | C10: =D3+C9*E3 -> 21.9 | D10: Maintenance Charge + (# Checks Written)*(Per-Check Charge) | L10: =VLOOKUP(C8,$K$2:$L$5,2)+VLOOKUP(C8,$K$2:$M$5,3)*C9 -> 21.9
A12: 9 | C12: 857
C13: Date: | D13: 2014-03-08
C14: Amount | D14: 1835.42
C15: To | D15: Wayne Plumbing
C16: For | D16: Septic
C17: Total | E17: 6215.13
C18: Deposits | E18: 1594.12
C19: Am't this Check | E19: =-D14 -> -1835.42
C20: Other | E20: -100
C21: Balance For'd | E21: =SUM(E17:E20) -> 5873.83
A26: 19 | B26: Check No. | C26: Date | D26: Check Issued To | E26: Amount of Check | F26: ü | G26: Date of Deposit | H26: Amount of Deposit | I26: Balance
H27: Balance Forward ==> | I27: 9628.35
B28: 1221 | C28: 2011-10-04 | D28: Delta Contactors | E28: 215.71 | I28: =IF(D28="","",I27-E28+H28) -> 9412.64
B29: e | C29: 2011-10-05 | D29: Hand Fabricators | E29: 573.78 | I29: =IF(D29="","",I28-E29+H29) -> 8838.86
B30: 1222 | C30: 2011-10-05 | D30: Photo Specialists | E30: 112.15 | I30: =IF(D30="","",I29-E30+H30) -> 8726.71
D31: Deposits | G31: 2011-10-06 | H31: 753.28 | I31: =IF(D31="","",I30-E31+H31) -> 9479.99
D32: Deposits | G32: 2011-10-08 | H32: 1475.69 | I32: =IF(D32="","",I31-E32+H32) -> 10955.68
B33: e | C33: 2011-10-09 | D33: Young Marketing | E33: 426.55 | I33: =IF(D33="","",I32-E33+H33) -> 10529.13
B34: e | C34: 2011-10-11 | D34: Wholesale Supply | E34: 637.93 | I34: =IF(D34="","",I33-E34+H34) -> 9891.2
C35: 2011-10-11 | D35: ATM(fuel) | E35: 65.62 | I35: =IF(D35="","",I34-E35+H35) -> 9825.58
B36: e | C36: 1900-01-10 | D36: Light & Power Utilities | E36: 248.17 | I36: =IF(D36="","",I35-E36+H36) -> 9577.41
D37: Deposits | G37: 2011-10-16 | H37: 335.85 | I37: =IF(D37="","",I36-E37+H37) -> 9913.26
B38: 1223 | C38: 2011-10-16 | D38: License Board | E38: 450.5 | I38: =IF(D38="","",I37-E38+H38) -> 9462.76
I39: =IF(D39="","",I38-E39+H39) -> 
I40: =IF(D40="","",I39-E40+H40) -> 
I41: =IF(D41="","",I40-E41+H41) -> 
I42: =IF(D42="","",I41-E42+H42) -> 

Sheet 5(2)
A1: 6-10 | B1: Credit Card Sales | D1: ="Total "&B1 -> Total Credit Card Sales | E1: =SUM(B2:B11) -> 2419.76
B2: 78.56 | D2: ="Total "&B12 -> Total Credit Card Refunds | E2: =SUM(B13:B15) -> 203.86
B3: 875.29 | D3: Net Credit Card Sales | E3: =E1-E2 -> 2215.9 | I3: Cedit Card Fee %
B4: 330.82 | D4: Total Fee | E4: =ROUND(E3*I4,2) -> 66.48 | G4: <<== ROUNDED | I4: 0.03
B5: 55.24 | D5: Net Deposit in | E5: =E3-E4 -> 2149.42
B6: 47.83 | I6: Check Round:
B7: 38.15 | I7: =E3*I4 -> 66.477
B8: 18.46
B9: 22.13
B10: 707.37
B11: 245.91
B12: Credit Card Refunds
B13: 29.76
B14: 102.15
B15: 71.95
A17: 11-15 | B17: Credit Card Sales | D17: ="Total "&B17 -> Total Credit Card Sales | E17: =SUM(B18:B29) -> 1064.72
B18: 7.84 | D18: ="Total "&B30 -> Total Credit Card Refunds | E18: =SUM(B31:B33) -> 72.83
B19: 33.18 | D19: Net Credit Card Sales | E19: =E17-E18 -> 991.89 | I19: Cedit Card Fee %
B20: 50.76 | D20: Total Fee | E20: =ROUND(E19*I20,2) -> 19.84 | G20: <<== ROUNDED | I20: 0.02
B21: 12.72 | D21: Net Deposit in | E21: =E19-E20 -> 972.05
B22: 9.36 | I22: Check Round:
B23: 118.68 | I23: =E19*I20 -> 19.8378
B24: 98.56
B25: 318.72
B26: 116.35
B27: 23.78
B28: 38.95
B29: 235.82
B30: Credit Card Refunds
B31: 13.86
B32: 58.97
A35: 16-20 | B35: Credit Card Sales | D35: ="Total "&B35 -> Total Credit Card Sales | E35: =SUM(B36:B47) -> 1245.2
B36: 14.86 | D36: ="Total "&B48 -> Total Credit Card Refunds | E36: =SUM(B49:B51) -> 60.21
B37: 49.7 | D37: Net Credit Card Sales | E37: =E35-E36 -> 1184.99 | I37: Cedit Card Fee %
B38: 183.6 | D38: Total Fee | E38: =ROUND(E37*I38,2) -> 29.62 | G38: <<== ROUNDED | I38: 0.025
B39: 238.75 | D39: Net Deposit in | E39: =E37-E38 -> 1155.37
B40: 18.36 | I40: Check Round:
B41: 52.08 | I41: =E37*I38 -> 29.62475
B42: 76.15
B43: 226.17
B44: 63.95
B45: 111.1
B46: 77.86
B47: 132.62
B48: Credit Card Refunds
B49: 43.15
B50: 17.06

Sheet 5(3)
A1: 14 | J1: Legend
J2: Automatic Teller Machine | N2: ATM
J3: Charge For Checks (Fee paid for Checks) | N3: CP
J4: Interest Credit (Interest Paid) | N4: IC
J5: Returned Check = | N5: RC
J6: electronic Bill Pay | N6: e
J7: Service Charge = | N7: SC
A9: Check No. | B9: Date | C9: Transaction Description | D9: Withdrawals | E9: ü | F9: Date of Deposit | G9: Amount of Deposit | H9: Balance | J9: Bank Statement
G10: Balance Forward ==> | H10: 7682.07 | J10: Check No. | K10: ü | L10: Withdrawals | M10: Deposits | N10: Date | O10: Balance
A11: e | B11: 2011-03-03 | C11: Action Packing Supplies | D11: 451.16 | E11: x | H11: =IF(C11="","",H10-D11+G11) -> 7230.91 | N11: 2011-03-05 | O11: 6647.78
A12: 663 | B12: 2011-03-03 | C12: Crown Paper | D12: 954.29 | E12: x | H12: 6276.62 | J12: Deposit | K12: x | M12: 913.28 | N12: 2011-03-07 | O12: =IF(J12="","",O11+M12-L12) -> 7561.06
A13: =A12+1 -> 664 | B13: 2011-03-05 | C13: ATM cash | D13: 80 | E13: x | H13: 6196.62 | J13: e | K13: x | L13: 451.16 | N13: 2011-03-11 | O13: =IF(J13="","",O12+M13-L13) -> 7109.9
C14: Deposit | E14: x | F14: 2011-03-07 | G14: 913.28 | H14: 7109.9 | J14: 665 | K14: x | L14: 340.88 | N14: 2011-03-16 | O14: 6769.02
A15: e | B15: 2011-03-10 | C15: Fairless Water District | D15: 72.37 | E15: x | H15: 7037.53 | J15: RC | L15: 82.15 | N15: 2011-03-16 | O15: 6686.87
A16: 665 | B16: 2011-03-12 | C16: Audia Temporary | D16: 340.88 | E16: x | H16: 6696.65 | J16: Deposit | K16: x | M16: 450.18 | N16: 2011-03-16 | O16: 7137.05
A17: e | B17: 2011-03-13 | C17: Lionel Toys | D17: 618.65 | E17: x | H17: 6078 | J17: e | K17: x | L17: 72.37 | N17: 2011-03-20 | O17: 7064.68
A18: 666 | B18: 2011-03-14 | C18: Fairless Hills Power | D18: 100.5 | H18: 5977.5 | J18: IC | M18: 22.48 | N18: 2011-03-20 | O18: 7087.16
C19: Deposit | E19: x | F19: 2011-03-16 | G19: 450.18 | H19: 6427.68 | J19: e | K19: x | L19: 618.65 | N19: 2011-03-22 | O19: 6468.51
C20: Deposit | E20: x | F20: 2011-03-18 | G20: 163.55 | H20: 6591.23 | J20: Deposit | K20: x | M20: 163.55 | N20: 2011-03-22 | O20: 6632.06
A21: 667 | B21: 2011-03-20 | C21: Hunt Roofing | D21: 238.5 | E21: x | H21: 6352.73 | J21: 667 | K21: x | L21: 238.5 | N21: 2011-03-26 | O21: 6393.56
A22: =A21+1 -> 668 | B22: 2011-03-22 | C22: Standard Brands | D22: 315.62 | H22: 6037.11 | J22: SC | L22: 12.7 | N22: 2011-03-26 | O22: 6380.86
A23: =A22+1 -> 669 | B23: 2011-03-23 | C23: Penny-Saver Products | D23: 67.29 | H23: 5969.82
C24: Deposit | F24: 2011-03-24 | G24: 830.75 | H24: 6800.57
H26: =IF(C26="","",H25-D26+G26) ->  | J26: withdrawals that We do not know about | N26: =L15+L22 -> 94.85
J27: Deposits that We do not know about | N27: =SUM(M18) -> 22.48 | Q27: Checks Outstanding | S27: Compare the list of checks paid by the bank with your records. List and total the checks not yet paid.
C28: Deposits that Bank does not know about | F28: =G24 -> 830.75 | Q28: Number | R28: Amount
C29: Withdrawals that Bank does not know about | F29: =D18+D22+D23 -> 483.41 | S29: 1 | T29: Enter new balance from bank statement: | X29: =O22 -> 6380.86
S31: 2 | T31: List any deposits made by you and | W31: + | X31: =G24 -> 830.75
T32: not yet recorded by the bank: | W32: +
W33: +
W34: +
S35: 3 | T35: Add all numbers from lines above.
T36: Total: | X36: =SUM(X29:X34) -> 7211.61
S37: 4 | T37: Total of checks outstanding: | W37: - | X37: =F29 -> 483.41
S38: 5 | T38: Subtract (4) from (3). This is the adjusted balance | X38: =X36-X37 -> 6728.2
Q40: Total
Q42: To reconcile your records:
Q43: 6 | R43: List your checkbook balance | V43: =H24 -> 6800.57
Q44: 7 | R44: Write the total of any fees or charges deducted by the bank and not yet subtracted by you from your checkbook: | U44: - | V44: =N26 -> 94.85
Q45: 8 | R45: Subtract line (7) from line (6). | V45: =V43-V44 -> 6705.72
Q46: 9 | R46: Add interest credit: | U46: + | V46: =N27 -> 22.48
Q47: 10 | R47: Add line (9) to line (8). This is the checkbook balance. | V47: =V45+V46 -> 6728.2

Sheet ii
B2: Checks Outstanding | D2: Compare the list of checks paid by the bank with your records. List and total the checks not yet paid.
B3: Number | C3: Amount
D4: 1 | E4: Enter new balance from bank statement:
D6: 2 | E6: List any deposits made by you and | H6: +
E7: not yet recorded by the bank: | H7: +
H8: +
H9: +
D10: 3 | E10: Add all numbers from lines above.
E11: Total:
D12: 4 | E12: Total of checks outstanding: | H12: -
D13: 5 | E13: Subtract (4) from (3). This is the adjusted balance
B15: Total
B17: To reconcile your records:
B18: 6 | C18: List your checkbook balance
B19: 7 | C19: Write the total of any fees or charges deducted by the bank and not yet subtracted by you from your checkbook: | F19: -
B20: 8 | C20: Subtract line (7) from line (6).
B21: 9 | C21: Add interest credit: | F21: +
B22: 10 | C22: Add line (9) to line (8). This is the checkbook balance.
